[Event "Titled Tuesday Blitz February 14 Early 2023"]
[White "Hartikainen, Jarmo"]
[Black "Martin Duque, Jesus"]
[WhiteFideId "503134"]
[BlackFideId "2208954"]
[WhiteElo "2108"]
[BlackElo "2386"]
[Result "0-1"]
[Round "01"]
[TimeControl "180+2"]
[Date "2023.02.15"]
[WhiteClock "0:00:13"]
[BlackClock "0:00:55"]

1. e4 {[%clk 0:02:57]}  c5 {[%clk 0:02:55]} 2. c3 {[%clk 0:02:57]}  d5 {[%clk 0:02:51]} 3. exd5 {[%clk 0:02:57]}  Nf6 {[%clk 0:02:51]} 4. d4 {[%clk 0:02:57]}  Qxd5 {[%clk 0:02:45]} 5. Nf3 {[%clk 0:02:55]}  Nc6 {[%clk 0:02:43]} 6. Na3 {[%clk 0:02:53]}  e6 {[%clk 0:02:41]} 7. Be3 {[%clk 0:02:44]}  cxd4 {[%clk 0:02:40]} 8. Nb5 {[%clk 0:02:42]}  Qd7 {[%clk 0:02:40]} 9. Nbxd4 {[%clk 0:02:41]}  a6 {[%clk 0:02:35]} 10. Bd3 {[%clk 0:02:29]}  b5 {[%clk 0:02:34]} 11. O-O {[%clk 0:02:28]}  Bb7 {[%clk 0:02:34]} 12. Qc2 {[%clk 0:02:17]}  Nd5 {[%clk 0:02:30]} 13. Bd2 {[%clk 0:02:09]}  Nxd4 {[%clk 0:02:29]} 14. Nxd4 {[%clk 0:02:08]}  Bd6 {[%clk 0:02:29]} 15. Rfe1 {[%clk 0:01:59]}  Qc7 {[%clk 0:02:27]} 16. h3 {[%clk 0:01:55]}  Bh2+ {[%clk 0:02:25]} 17. Kh1 {[%clk 0:01:52]}  Bf4 {[%clk 0:02:22]} 18. Rad1 {[%clk 0:01:47]}  h6 {[%clk 0:02:21]} 19. a4 {[%clk 0:01:37]}  Bxd2 {[%clk 0:02:04]} 20. Rxd2 {[%clk 0:01:35]}  b4 {[%clk 0:02:04]} 21. cxb4 {[%clk 0:01:35]}  Qxc2 {[%clk 0:02:03]} 22. Nxc2 {[%clk 0:01:35]}  O-O-O {[%clk 0:02:00]} 23. b5 {[%clk 0:01:31]}  Nf4 {[%clk 0:02:00]} 24. Nb4 {[%clk 0:01:03]}  Bxg2+ {[%clk 0:01:51]} 25. Kh2 {[%clk 0:00:57]}  a5 {[%clk 0:01:50]} 26. Rc1+ {[%clk 0:00:45]}  Kb7 {[%clk 0:01:49]} 27. Nc6 {[%clk 0:00:41]}  Rxd3 {[%clk 0:01:47]} 28. Nxa5+ {[%clk 0:00:39]}  Ka8 {[%clk 0:01:39]} 29. Rxd3 {[%clk 0:00:33]}  Nxd3 {[%clk 0:01:39]} 30. Rc7 {[%clk 0:00:33]}  Bd5 {[%clk 0:01:37]} 31. Rxf7 {[%clk 0:00:24]}  Nxb2 {[%clk 0:01:37]} 32. Rxg7 {[%clk 0:00:23]}  Nxa4 {[%clk 0:01:31]} 33. Nc6 {[%clk 0:00:23]}  Bxc6 {[%clk 0:01:26]} 34. bxc6 {[%clk 0:00:23]}  Nc5 {[%clk 0:01:22]} 35. Kg3 {[%clk 0:00:20]}  Rc8 {[%clk 0:01:20]} 36. Rg6 {[%clk 0:00:19]}  h5 {[%clk 0:01:18]} 37. Rh6 {[%clk 0:00:19]}  Rxc6 {[%clk 0:01:16]} 38. Rxh5 {[%clk 0:00:19]}  Kb7 {[%clk 0:01:16]} 39. Re5 {[%clk 0:00:19]}  Kc7 {[%clk 0:01:15]} 40. h4 {[%clk 0:00:20]}  Kd6 {[%clk 0:01:16]} 41. Re3 {[%clk 0:00:19]}  e5 {[%clk 0:01:15]} 42. h5 {[%clk 0:00:18]}  Kd5 {[%clk 0:01:13]} 43. f4 {[%clk 0:00:18]}  e4 {[%clk 0:01:13]} 44. Kg4 {[%clk 0:00:18]}  Nd7 {[%clk 0:01:08]} 45. Kg5 {[%clk 0:00:16]}  Kd4 {[%clk 0:01:08]} 46. Re1 {[%clk 0:00:15]}  Nf8 {[%clk 0:01:06]} 47. f5 {[%clk 0:00:15]}  Nh7+ {[%clk 0:01:04]} 48. Kf4 {[%clk 0:00:15]}  Nf6 {[%clk 0:01:01]} 49. h6 {[%clk 0:00:15]}  Rc3 {[%clk 0:00:59]} 50. h7 {[%clk 0:00:14]}  Rf3+ {[%clk 0:00:59]} 51. Kg5 {[%clk 0:00:13]}  Nxh7+ {[%clk 0:00:57]} 52. Kg6 {[%clk 0:00:13]}  Nf8+ {[%clk 0:00:58]} 53. Kf7 {[%clk 0:00:14]}  Rxf5+ {[%clk 0:00:57]} 54. Ke7 {[%clk 0:00:13]}  e3 {[%clk 0:00:55]} 0-1


[Site "https://www.chess.com"]

[Event "Titled Tuesday Blitz February 14 Early 2023"]
[White "Putri, Regita Desyari"]
[Black "Chor, Kevin"]
[WhiteFideId "7109083"]
[BlackFideId "2090740"]
[WhiteElo "1863"]
[BlackElo "1944"]
[Result "0-1"]
[Round "01"]
[TimeControl "180+2"]
[Date "2023.02.15"]
[WhiteClock "0:01:27"]
[BlackClock "0:01:23"]

1. d4 {[%clk 0:02:59]}  Nf6 {[%clk 0:02:59]} 2. c4 {[%clk 0:02:59]}  g6 {[%clk 0:03:00]} 3. Nf3 {[%clk 0:03:00]}  Bg7 {[%clk 0:03:00]} 4. g3 {[%clk 0:03:00]}  O-O {[%clk 0:03:00]} 5. Bg2 {[%clk 0:03:01]}  d6 {[%clk 0:03:01]} 6. O-O {[%clk 0:03:02]}  Nc6 {[%clk 0:03:02]} 7. Nc3 {[%clk 0:03:02]}  Bf5 {[%clk 0:03:02]} 8. b3 {[%clk 0:02:48]}  Ne4 {[%clk 0:03:01]} 9. Bb2 {[%clk 0:02:48]}  Nxc3 {[%clk 0:02:59]} 10. Bxc3 {[%clk 0:02:49]}  Be4 {[%clk 0:02:59]} 11. Ne1 {[%clk 0:02:40]}  Bxg2 {[%clk 0:02:52]} 12. Kxg2 {[%clk 0:02:41]}  d5 {[%clk 0:02:51]} 13. e3 {[%clk 0:02:35]}  e5 {[%clk 0:02:41]} 14. dxe5 {[%clk 0:02:32]}  dxc4 {[%clk 0:02:40]} 15. f4 {[%clk 0:02:18]}  cxb3 {[%clk 0:02:13]} 16. axb3 {[%clk 0:02:19]}  Qe7 {[%clk 0:02:11]} 17. Qc2 {[%clk 0:02:12]}  Rfd8 {[%clk 0:02:10]} 18. Nf3 {[%clk 0:02:11]}  Qc5 {[%clk 0:02:09]} 19. Rfe1 {[%clk 0:02:01]}  Nb4 {[%clk 0:02:03]} 20. Qb2 {[%clk 0:01:39]}  Nd3 {[%clk 0:02:01]} 21. Bd4 {[%clk 0:01:39]}  Qd5 {[%clk 0:01:50]} 22. Qc3 {[%clk 0:01:37]}  Nxe1+ {[%clk 0:01:48]} 23. Rxe1 {[%clk 0:01:38]}  Rac8 {[%clk 0:01:36]} 24. b4 {[%clk 0:01:37]}  b6 {[%clk 0:01:35]} 25. e4 {[%clk 0:01:34]}  Qb5 {[%clk 0:01:30]} 26. Ra1 {[%clk 0:01:27]}  c5 {[%clk 0:01:28]} 27. bxc5 {[%clk 0:01:27]}  bxc5 {[%clk 0:01:29]} 28. Bf2 {[%clk 0:01:27]}  Rd3 {[%clk 0:01:23]} 0-1


[Site "https://www.chess.com"]

[Event "Titled Tuesday Blitz February 14 Early 2023"]
[White "Sabar, Ethmane Daouda"]
[Black "Badelka, Olga"]
[WhiteFideId "19600097"]
[BlackFideId "13509926"]
[WhiteElo "2040"]
[BlackElo "2406"]
[Result "0-1"]
[Round "01"]
[TimeControl "180+2"]
[Date "2023.02.15"]
[WhiteClock "0:00:01"]
[BlackClock "0:00:17"]

1. e4 {[%clk 0:02:59]}  c5 {[%clk 0:02:54]} 2. a3 {[%clk 0:02:58]}  g6 {[%clk 0:02:51]} 3. b4 {[%clk 0:02:52]}  Bg7 {[%clk 0:02:51]} 4. c3 {[%clk 0:02:46]}  b6 {[%clk 0:02:50]} 5. d4 {[%clk 0:02:44]}  cxd4 {[%clk 0:02:48]} 6. cxd4 {[%clk 0:02:43]}  Nc6 {[%clk 0:02:43]} 7. Nf3 {[%clk 0:02:41]}  d6 {[%clk 0:02:39]} 8. h3 {[%clk 0:02:40]}  Nf6 {[%clk 0:02:39]} 9. Nc3 {[%clk 0:02:39]}  O-O {[%clk 0:02:38]} 10. Be3 {[%clk 0:02:37]}  Bb7 {[%clk 0:02:33]} 11. Bd3 {[%clk 0:02:27]}  Rc8 {[%clk 0:02:33]} 12. Rc1 {[%clk 0:02:26]}  Ne8 {[%clk 0:01:45]} 13. O-O {[%clk 0:02:24]}  Nc7 {[%clk 0:01:29]} 14. Qe2 {[%clk 0:02:21]}  e5 {[%clk 0:01:26]} 15. d5 {[%clk 0:01:49]}  Nd4 {[%clk 0:01:26]} 16. Bxd4 {[%clk 0:01:42]}  exd4 {[%clk 0:01:26]} 17. Nb5 {[%clk 0:01:39]}  Nxb5 {[%clk 0:01:25]} 18. Bxb5 {[%clk 0:01:40]}  Qf6 {[%clk 0:01:19]} 19. Bc6 {[%clk 0:01:22]}  Rb8 {[%clk 0:01:05]} 20. Qd3 {[%clk 0:01:12]}  Qf4 {[%clk 0:00:41]} 21. Nxd4 {[%clk 0:00:57]}  Be5 {[%clk 0:00:41]} 22. Nf3 {[%clk 0:00:56]}  Bb2 {[%clk 0:00:31]} 23. Rc2 {[%clk 0:00:53]}  Bf6 {[%clk 0:00:32]} 24. g3 {[%clk 0:00:48]}  Qh6 {[%clk 0:00:32]} 25. Kh2 {[%clk 0:00:46]}  Bc8 {[%clk 0:00:32]} 26. Ng1 {[%clk 0:00:41]}  g5 {[%clk 0:00:29]} 27. Kg2 {[%clk 0:00:26]}  g4 {[%clk 0:00:27]} 28. h4 {[%clk 0:00:20]}  Be5 {[%clk 0:00:26]} 29. Ne2 {[%clk 0:00:18]}  f5 {[%clk 0:00:27]} 30. Nf4 {[%clk 0:00:13]}  fxe4 {[%clk 0:00:26]} 31. Qxe4 {[%clk 0:00:13]}  Bf5 {[%clk 0:00:26]} 32. Qc4 {[%clk 0:00:11]}  Bxc2 {[%clk 0:00:25]} 33. Qxc2 {[%clk 0:00:12]}  Bxf4 {[%clk 0:00:25]} 34. gxf4 {[%clk 0:00:13]}  Qxf4 {[%clk 0:00:25]} 35. Qd3 {[%clk 0:00:11]}  Rf6 {[%clk 0:00:18]} 36. Qg3 {[%clk 0:00:10]}  Rbf8 {[%clk 0:00:14]} 37. Qxf4 {[%clk 0:00:09]}  Rxf4 {[%clk 0:00:15]} 38. Bd7 {[%clk 0:00:07]}  h5 {[%clk 0:00:14]} 39. Be6+ {[%clk 0:00:07]}  Kg7 {[%clk 0:00:14]} 40. a4 {[%clk 0:00:05]}  Rf3 {[%clk 0:00:15]} 41. a5 {[%clk 0:00:04]}  g3 {[%clk 0:00:15]} 42. axb6 {[%clk 0:00:03]}  axb6 {[%clk 0:00:15]} 43. b5 {[%clk 0:00:03]}  Rxf2+ {[%clk 0:00:14]} 44. Rxf2 {[%clk 0:00:03]}  gxf2 {[%clk 0:00:15]} 45. Kf1 {[%clk 0:00:03]}  Rf4 {[%clk 0:00:16]} 46. Bd7 {[%clk 0:00:02]}  Kf6 {[%clk 0:00:16]} 47. Bc6 {[%clk 0:00:02]}  Ke5 {[%clk 0:00:17]} 48. Bd7 {[%clk 0:00:01]}  Kd4 {[%clk 0:00:17]} 49. Bc6 {[%clk 0:00:02]}  Ke3 {[%clk 0:00:18]} 50. Bd7 {[%clk 0:00:01]}  Rxh4 {[%clk 0:00:18]} 51. Bh3 {[%clk 0:00:01]}  Rxh3 {[%clk 0:00:17]} 0-1


[Site "https://www.chess.com"]

[Event "Titled Tuesday Blitz February 14 Early 2023"]
[White "Ruge, Edison"]
[Black "Parpiev, Isaak"]
[WhiteFideId "4401000"]
[BlackFideId "34281576"]
[WhiteElo "2201"]
[BlackElo "2167"]
[Result "0-1"]
[Round "01"]
[TimeControl "180+2"]
[Date "2023.02.15"]
[WhiteClock "0:00:02"]
[BlackClock "0:00:14"]

1. e4 {[%clk 0:02:59]}  c5 {[%clk 0:02:57]} 2. Nc3 {[%clk 0:02:52]}  Nc6 {[%clk 0:02:56]} 3. f4 {[%clk 0:02:50]}  d6 {[%clk 0:02:54]} 4. Nf3 {[%clk 0:02:48]}  g6 {[%clk 0:02:53]} 5. Bb5 {[%clk 0:02:45]}  Bg7 {[%clk 0:02:52]} 6. Bxc6+ {[%clk 0:02:44]}  bxc6 {[%clk 0:02:52]} 7. d3 {[%clk 0:02:44]}  e6 {[%clk 0:02:45]} 8. O-O {[%clk 0:02:42]}  Ne7 {[%clk 0:02:44]} 9. Qe1 {[%clk 0:02:41]}  O-O {[%clk 0:02:41]} 10. Qg3 {[%clk 0:02:31]}  f5 {[%clk 0:02:37]} 11. Bd2 {[%clk 0:02:28]}  Rb8 {[%clk 0:02:35]} 12. b3 {[%clk 0:02:28]}  fxe4 {[%clk 0:02:18]} 13. dxe4 {[%clk 0:02:23]}  d5 {[%clk 0:02:18]} 14. Rad1 {[%clk 0:02:13]}  Qb6 {[%clk 0:02:03]} 15. Na4 {[%clk 0:02:09]}  Qb5 {[%clk 0:01:59]} 16. Ng5 {[%clk 0:01:51]}  h6 {[%clk 0:01:41]} 17. Nf3 {[%clk 0:01:50]}  dxe4 {[%clk 0:01:22]} 18. Ne5 {[%clk 0:01:36]}  Nf5 {[%clk 0:00:51]} 19. Qxg6 {[%clk 0:01:34]}  e3 {[%clk 0:00:46]} 20. c4 {[%clk 0:01:29]}  Qb7 {[%clk 0:00:37]} 21. Bc3 {[%clk 0:01:18]}  e2 {[%clk 0:00:36]} 22. Nxc5 {[%clk 0:01:19]}  exf1=Q+ {[%clk 0:00:35]} 23. Rxf1 {[%clk 0:01:15]}  Qe7 {[%clk 0:00:32]} 24. Ne4 {[%clk 0:01:04]}  Bb7 {[%clk 0:00:25]} 25. Ng4 {[%clk 0:00:57]}  Kh8 {[%clk 0:00:18]} 26. Be5 {[%clk 0:00:47]}  Bxe5 {[%clk 0:00:18]} 27. Nxe5 {[%clk 0:00:42]}  Qg7 {[%clk 0:00:16]} 28. Qxe6 {[%clk 0:00:40]}  Rbd8 {[%clk 0:00:15]} 29. Ng6+ {[%clk 0:00:40]}  Kh7 {[%clk 0:00:14]} 30. Nxf8+ {[%clk 0:00:35]}  Rxf8 {[%clk 0:00:15]} 31. c5 {[%clk 0:00:30]}  Ne3 {[%clk 0:00:15]} 32. g3 {[%clk 0:00:14]}  Nxf1 {[%clk 0:00:15]} 33. Kxf1 {[%clk 0:00:14]}  Ba6+ {[%clk 0:00:15]} 34. Kg2 {[%clk 0:00:14]}  Bc8 {[%clk 0:00:16]} 35. Qd6 {[%clk 0:00:10]}  Bf5 {[%clk 0:00:16]} 36. Nf2 {[%clk 0:00:07]}  Qf6 {[%clk 0:00:13]} 37. Qc7+ {[%clk 0:00:04]}  Rf7 {[%clk 0:00:13]} 38. Qb8 {[%clk 0:00:04]}  Rd7 {[%clk 0:00:14]} 39. g4 {[%clk 0:00:03]}  Bg6 {[%clk 0:00:14]} 40. f5 {[%clk 0:00:02]}  Bf7 {[%clk 0:00:14]} 0-1


[Site "https://www.chess.com"]

[Event "Titled Tuesday Blitz February 14 Early 2023"]
[White "Kaidanov, Gregory"]
[Black "Broca Jimenez, Fernando"]
[WhiteFideId "2008564"]
[BlackFideId "5104742"]
[WhiteElo "2559"]
[BlackElo "2075"]
[Result "1-0"]
[Round "01"]
[TimeControl "180+2"]
[Date "2023.02.15"]
[WhiteClock "0:00:17"]
[BlackClock "0:00:07"]

1. d4 {[%clk 0:02:59]}  Nf6 {[%clk 0:02:59]} 2. c4 {[%clk 0:02:59]}  e6 {[%clk 0:02:58]} 3. Nc3 {[%clk 0:02:59]}  Bb4 {[%clk 0:02:58]} 4. e3 {[%clk 0:03:00]}  O-O {[%clk 0:02:48]} 5. Bd3 {[%clk 0:03:00]}  c5 {[%clk 0:02:47]} 6. Nf3 {[%clk 0:03:01]}  d5 {[%clk 0:02:46]} 7. O-O {[%clk 0:03:00]}  Nc6 {[%clk 0:02:44]} 8. a3 {[%clk 0:03:00]}  cxd4 {[%clk 0:02:44]} 9. axb4 {[%clk 0:02:58]}  dxc3 {[%clk 0:02:44]} 10. bxc3 {[%clk 0:02:59]}  Qc7 {[%clk 0:02:33]} 11. Qe2 {[%clk 0:02:51]}  Bd7 {[%clk 0:02:27]} 12. Bb2 {[%clk 0:02:50]}  dxc4 {[%clk 0:02:17]} 13. Bxc4 {[%clk 0:02:50]}  a6 {[%clk 0:01:59]} 14. Bd3 {[%clk 0:02:50]}  Rfc8 {[%clk 0:01:42]} 15. Rfd1 {[%clk 0:02:49]}  Rd8 {[%clk 0:01:40]} 16. Rac1 {[%clk 0:02:48]}  Rac8 {[%clk 0:01:33]} 17. h3 {[%clk 0:02:48]}  Ne5 {[%clk 0:01:25]} 18. Nxe5 {[%clk 0:02:47]}  Qxe5 {[%clk 0:01:26]} 19. c4 {[%clk 0:02:47]}  Qg5 {[%clk 0:01:26]} 20. e4 {[%clk 0:02:35]}  Bc6 {[%clk 0:01:21]} 21. Bb1 {[%clk 0:02:31]}  e5 {[%clk 0:01:14]} 22. b5 {[%clk 0:02:25]}  Bd7 {[%clk 0:01:00]} 23. Ba3 {[%clk 0:02:11]}  Nh5 {[%clk 0:00:55]} 24. Qf3 {[%clk 0:02:00]}  Nf4 {[%clk 0:00:51]} 25. Kh2 {[%clk 0:02:00]}  Be6 {[%clk 0:00:41]} 26. bxa6 {[%clk 0:01:53]}  bxa6 {[%clk 0:00:39]} 27. c5 {[%clk 0:01:51]}  h5 {[%clk 0:00:11]} 28. Rxd8+ {[%clk 0:01:40]}  Rxd8 {[%clk 0:00:12]} 29. c6 {[%clk 0:01:40]}  Rc8 {[%clk 0:00:11]} 30. c7 {[%clk 0:01:39]}  g6 {[%clk 0:00:08]} 31. Rc5 {[%clk 0:01:34]}  h4 {[%clk 0:00:06]} 32. Bb2 {[%clk 0:01:29]}  f6 {[%clk 0:00:06]} 33. Bc1 {[%clk 0:01:24]}  Kf7 {[%clk 0:00:04]} 34. Bc2 {[%clk 0:01:16]}  Qh5 {[%clk 0:00:03]} 35. Qxh5 {[%clk 0:01:00]}  Nxh5 {[%clk 0:00:04]} 36. Bd3 {[%clk 0:00:58]}  Ke7 {[%clk 0:00:04]} 37. Bxa6 {[%clk 0:00:57]}  Kd6 {[%clk 0:00:04]} 38. Bxc8 {[%clk 0:00:55]}  Bxc8 {[%clk 0:00:05]} 39. Ba3 {[%clk 0:00:54]}  Ng7 {[%clk 0:00:06]} 40. Rc1+ {[%clk 0:00:48]}  Kd7 {[%clk 0:00:06]} 41. Rd1+ {[%clk 0:00:43]}  Kxc7 {[%clk 0:00:05]} 42. Be7 {[%clk 0:00:44]}  Ne8 {[%clk 0:00:04]} 43. Bd8+ {[%clk 0:00:41]}  Kc6 {[%clk 0:00:04]} 44. g3 {[%clk 0:00:36]}  Bd7 {[%clk 0:00:04]} 45. gxh4 {[%clk 0:00:34]}  f5 {[%clk 0:00:02]} 46. exf5 {[%clk 0:00:32]}  Bxf5 {[%clk 0:00:03]} 47. Kg3 {[%clk 0:00:30]}  Nd6 {[%clk 0:00:03]} 48. Bg5 {[%clk 0:00:26]}  Ne4+ {[%clk 0:00:04]} 49. Kg2 {[%clk 0:00:26]}  Nc5 {[%clk 0:00:03]} 50. Rc1 {[%clk 0:00:25]}  Kd5 {[%clk 0:00:03]} 51. Be3 {[%clk 0:00:24]}  Nd3 {[%clk 0:00:04]} 52. Rc7 {[%clk 0:00:23]}  Ke4 {[%clk 0:00:05]} 53. Kg3 {[%clk 0:00:23]}  Ne1 {[%clk 0:00:04]} 54. Rc4+ {[%clk 0:00:20]}  Kd3 {[%clk 0:00:04]} 55. Ra4 {[%clk 0:00:19]}  Ke2 {[%clk 0:00:05]} 56. Ra6 {[%clk 0:00:18]}  Nd3 {[%clk 0:00:05]} 57. h5 {[%clk 0:00:16]}  gxh5 {[%clk 0:00:05]} 58. h4 {[%clk 0:00:17]}  Bg4 {[%clk 0:00:05]} 59. Rf6 {[%clk 0:00:17]}  Ne1 {[%clk 0:00:05]} 60. Bg5 {[%clk 0:00:17]}  Nf3 {[%clk 0:00:06]} 61. Ra6 {[%clk 0:00:16]}  Kd3 {[%clk 0:00:05]} 62. Ra3+ {[%clk 0:00:16]}  Ke4 {[%clk 0:00:06]} 63. Re3+ {[%clk 0:00:16]}  Kf5 {[%clk 0:00:06]} 64. Rxf3+ {[%clk 0:00:17]}  Bxf3 {[%clk 0:00:06]} 65. Kxf3 {[%clk 0:00:17]}  e4+ {[%clk 0:00:07]} 66. Ke3 {[%clk 0:00:18]}  Kg4 {[%clk 0:00:07]} 67. Kxe4 {[%clk 0:00:17]} 1-0


[Site "https://www.chess.com"]

[Event "Titled Tuesday Blitz February 14 Early 2023"]
[White "Arencibia Monduy, Antonio"]
[Black "Aung Thant Zin"]
[WhiteFideId "3507939"]
[BlackFideId "13000063"]
[WhiteElo "2122"]
[BlackElo "2268"]
[Result "1-0"]
[Round "01"]
[TimeControl "180+2"]
[Date "2023.02.15"]
[WhiteClock "0:00:05"]
[BlackClock "0:00:02"]

1. e4 {[%clk 0:02:59]}  c5 {[%clk 0:02:42]} 2. Nf3 {[%clk 0:02:59]}  Nc6 {[%clk 0:02:42]} 3. Bc4 {[%clk 0:02:59]}  d6 {[%clk 0:02:41]} 4. d3 {[%clk 0:02:59]}  Nf6 {[%clk 0:02:37]} 5. c3 {[%clk 0:02:58]}  e6 {[%clk 0:02:35]} 6. O-O {[%clk 0:02:57]}  Be7 {[%clk 0:02:35]} 7. Re1 {[%clk 0:02:57]}  O-O {[%clk 0:02:35]} 8. Bb3 {[%clk 0:02:58]}  b6 {[%clk 0:02:30]} 9. Nbd2 {[%clk 0:02:56]}  Bb7 {[%clk 0:02:30]} 10. Nf1 {[%clk 0:02:56]}  Qc7 {[%clk 0:02:28]} 11. Ng3 {[%clk 0:02:56]}  Rad8 {[%clk 0:02:27]} 12. Qe2 {[%clk 0:02:56]}  Rfe8 {[%clk 0:02:26]} 13. h3 {[%clk 0:02:49]}  h6 {[%clk 0:02:15]} 14. Bf4 {[%clk 0:02:49]}  Ne5 {[%clk 0:02:08]} 15. Rad1 {[%clk 0:02:40]}  Ba6 {[%clk 0:01:56]} 16. Qe3 {[%clk 0:02:15]}  Nxd3 {[%clk 0:01:39]} 17. Rxd3 {[%clk 0:02:09]}  c4 {[%clk 0:01:39]} 18. Rd2 {[%clk 0:02:05]}  cxb3 {[%clk 0:01:39]} 19. axb3 {[%clk 0:02:06]}  Bc8 {[%clk 0:00:58]} 20. Red1 {[%clk 0:01:49]}  e5 {[%clk 0:00:55]} 21. Bxh6 {[%clk 0:01:49]}  gxh6 {[%clk 0:00:55]} 22. Qxh6 {[%clk 0:01:50]}  Nh7 {[%clk 0:00:55]} 23. Rd3 {[%clk 0:01:15]}  Bf8 {[%clk 0:00:53]} 24. Qd2 {[%clk 0:01:08]}  Qe7 {[%clk 0:00:37]} 25. c4 {[%clk 0:01:02]}  Kh8 {[%clk 0:00:30]} 26. b4 {[%clk 0:00:49]}  Bg7 {[%clk 0:00:29]} 27. c5 {[%clk 0:00:46]}  bxc5 {[%clk 0:00:20]} 28. bxc5 {[%clk 0:00:46]}  Be6 {[%clk 0:00:19]} 29. cxd6 {[%clk 0:00:46]}  Qd7 {[%clk 0:00:19]} 30. Nh4 {[%clk 0:00:45]}  Rg8 {[%clk 0:00:17]} 31. Nhf5 {[%clk 0:00:45]}  Bf8 {[%clk 0:00:17]} 32. Rc3 {[%clk 0:00:37]}  Bxf5 {[%clk 0:00:14]} 33. Nxf5 {[%clk 0:00:37]}  Qe6 {[%clk 0:00:13]} 34. Qd5 {[%clk 0:00:24]}  Ng5 {[%clk 0:00:12]} 35. Qd3 {[%clk 0:00:19]}  f6 {[%clk 0:00:10]} 36. Kh2 {[%clk 0:00:19]}  Rd7 {[%clk 0:00:07]} 37. Rc6 {[%clk 0:00:07]}  Nf7 {[%clk 0:00:07]} 38. Qf3 {[%clk 0:00:04]}  Nxd6 {[%clk 0:00:07]} 39. Nxd6 {[%clk 0:00:04]}  Rxd6 {[%clk 0:00:07]} 40. Rcxd6 {[%clk 0:00:04]}  Bxd6 {[%clk 0:00:08]} 41. Qh5+ {[%clk 0:00:04]}  Kg7 {[%clk 0:00:08]} 42. Rd3 {[%clk 0:00:04]}  Kf8 {[%clk 0:00:07]} 43. Qh6+ {[%clk 0:00:05]}  Ke8 {[%clk 0:00:07]} 44. Rc3 {[%clk 0:00:03]}  Qd7 {[%clk 0:00:05]} 45. Qh5+ {[%clk 0:00:03]}  Ke7 {[%clk 0:00:03]} 46. Qh7+ {[%clk 0:00:03]}  Kf8 {[%clk 0:00:03]} 47. Qxd7 {[%clk 0:00:03]}  Rxg2+ {[%clk 0:00:03]} 48. Kxg2 {[%clk 0:00:02]}  Bc5 {[%clk 0:00:02]} 49. Kf1 {[%clk 0:00:03]}  Bd4 {[%clk 0:00:01]} 50. Qc8+ {[%clk 0:00:03]}  Kg7 {[%clk 0:00:01]} 51. Rc6 {[%clk 0:00:04]}  Kg6 {[%clk 0:00:02]} 52. Qd7 {[%clk 0:00:04]}  Kg5 {[%clk 0:00:03]} 53. Qf5+ {[%clk 0:00:05]}  Kh4 {[%clk 0:00:02]} 54. Qg4# {[%clk 0:00:05]} 1-0


[Site "https://www.chess.com"]

[Event "Titled Tuesday Blitz February 14 Early 2023"]
[White "Levine, David"]
[Black "Cella, Glaucio Dalla Cortt"]
[WhiteFideId "2011611"]
[BlackFideId "2119455"]
[WhiteElo "2040"]
[BlackElo "1894"]
[Result "0-1"]
[Round "01"]
[TimeControl "180+2"]
[Date "2023.02.15"]
[WhiteClock "0:00:07"]
[BlackClock "0:00:46"]

1. d4 {[%clk 0:02:59]}  Nf6 {[%clk 0:02:58]} 2. c4 {[%clk 0:02:59]}  e5 {[%clk 0:02:57]} 3. dxe5 {[%clk 0:02:58]}  Ng4 {[%clk 0:02:57]} 4. Bf4 {[%clk 0:02:54]}  Nc6 {[%clk 0:02:57]} 5. Nf3 {[%clk 0:02:54]}  Bb4+ {[%clk 0:02:57]} 6. Nbd2 {[%clk 0:02:53]}  Qe7 {[%clk 0:02:54]} 7. e3 {[%clk 0:02:53]}  Ngxe5 {[%clk 0:02:53]} 8. Nxe5 {[%clk 0:02:53]}  Nxe5 {[%clk 0:02:54]} 9. Be2 {[%clk 0:02:53]}  d6 {[%clk 0:02:52]} 10. O-O {[%clk 0:02:52]}  a5 {[%clk 0:02:45]} 11. Nb3 {[%clk 0:02:40]}  a4 {[%clk 0:02:26]} 12. Nd4 {[%clk 0:02:38]}  a3 {[%clk 0:02:20]} 13. b3 {[%clk 0:02:34]}  O-O {[%clk 0:02:10]} 14. Qc2 {[%clk 0:02:29]}  Re8 {[%clk 0:02:08]} 15. Rad1 {[%clk 0:02:24]}  Qh4 {[%clk 0:02:07]} 16. Bg3 {[%clk 0:02:21]}  Qe7 {[%clk 0:02:03]} 17. Nf3 {[%clk 0:02:11]}  Nxf3+ {[%clk 0:01:58]} 18. Bxf3 {[%clk 0:02:11]}  Qf6 {[%clk 0:01:59]} 19. Be4 {[%clk 0:01:57]}  h5 {[%clk 0:01:56]} 20. h3 {[%clk 0:01:52]}  Ra5 {[%clk 0:01:56]} 21. Rd5 {[%clk 0:01:49]}  b6 {[%clk 0:01:49]} 22. Rxa5 {[%clk 0:01:46]}  Bxa5 {[%clk 0:01:50]} 23. Rd1 {[%clk 0:01:39]}  Bd7 {[%clk 0:01:50]} 24. Qd3 {[%clk 0:01:33]}  g6 {[%clk 0:01:50]} 25. Bf3 {[%clk 0:01:05]}  Bb4 {[%clk 0:01:51]} 26. Qd4 {[%clk 0:01:04]}  Qxd4 {[%clk 0:01:44]} 27. Rxd4 {[%clk 0:01:03]}  Bc3 {[%clk 0:01:45]} 28. Rd3 {[%clk 0:00:59]}  Bf6 {[%clk 0:01:45]} 29. Kf1 {[%clk 0:00:41]}  h4 {[%clk 0:01:43]} 30. Bh2 {[%clk 0:00:37]}  Bb2 {[%clk 0:01:41]} 31. Ke2 {[%clk 0:00:36]}  Bf5 {[%clk 0:01:37]} 32. Rd1 {[%clk 0:00:35]}  Bc2 {[%clk 0:01:32]} 33. Rd2 {[%clk 0:00:33]}  Bxb3 {[%clk 0:01:28]} 34. Bc6 {[%clk 0:00:25]}  Bxc4+ {[%clk 0:01:27]} 35. Kf3 {[%clk 0:00:25]}  Rb8 {[%clk 0:01:01]} 36. Bd5 {[%clk 0:00:24]}  Bc3 {[%clk 0:00:58]} 37. Rd1 {[%clk 0:00:19]}  Bxd5+ {[%clk 0:00:48]} 38. Rxd5 {[%clk 0:00:19]}  b5 {[%clk 0:00:49]} 39. Ke2 {[%clk 0:00:15]}  b4 {[%clk 0:00:49]} 40. Kd3 {[%clk 0:00:15]}  b3 {[%clk 0:00:46]} 41. Kxc3 {[%clk 0:00:08]}  bxa2 {[%clk 0:00:46]} 42. Rd1 {[%clk 0:00:07]}  Rb1 {[%clk 0:00:46]} 0-1


[Site "https://www.chess.com"]